[Event "10th Dolomiti Open 2019"]
[Site "Forni di Sopra"]
[Date "2019.06.18"]
[Round "5.9"]
[White "Eugene, Floryan"]
[Black "Valsecchi, Alessio"]
[Result "0-1"]
[ECO "C03"]
[WhiteElo "2304"]
[BlackElo "2504"]
[Annotator "ChessBase"]
[PlyCount "115"]
[EventDate "2019.06.15"]
[EventType "swiss"]
[EventCountry "ITA"]
[SourceTitle "playchess.com"]
[Source "ChessBase"]
[SourceQuality "1"]
[TimeControl "40/5400+30:1800+30"]

1. e4 {[%emt 0:03:44]} e6 {[%emt 0:00:07]} 2. d4 {[%emt 0:01:09]} d5 {[%emt 0:00:04]} 3. Nd2 {[%emt 0:00:05]} Be7 {[%emt 0:01:56]} 4. Ngf3 {[%emt 0:01:12]} Nf6 {[%emt 0:00:07]} 5. e5 {[%emt 0:00:10]} Nfd7 {[%emt 0:00:10]} 6. Bd3 {[%emt 0:03:16]} c5 {[%emt 0:00:06]} 7. c3 {[%emt 0:00:01]} b6 {[%emt 0:00:07]} 8. Qe2 {[%emt 0:08:04]} Nc6 {[%emt 0:01:16]} 9. a3 {[%emt 0:06:12]} a5 {[%emt 0:02:08]} 10. Nf1 {[%emt 0:08:28]} a4 {[%emt 0:15:08]} 11. Bb5 {[%emt 0:07:11]} Ndb8 {[%emt 0:08:02]} 12. Qd1 {[%emt 0:02:04]} Bd7 {[%emt 0:00:06]} 13. Bxa4 {[%emt 0:04:09]} Nxe5 {[%emt 0:08:22]} 14. Bxd7+ {[%emt 0:05:06]} Nexd7 {[%emt 0:00:09]} 15. Bf4 {[%emt 0:00:53]} Nc6 {[%emt 0:02:07]} 16. Ne3 {[%emt 0:01:51]} c4 {[%emt 0:05:21]} 17. Qc2 {[%emt 0:03:43]} b5 {[%emt 0:03:23]} 18. Rd1 {[%emt 0:00:58]} O-O {[%emt 0:00:24]} 19. h4 {[%emt 0:05:02]} Nf6 {[%emt 0:06:57]} 20. Ng5 {[%emt 0:08:18]} Bd6 {[%emt 0:05:58]} 21. Ng4 {[%emt 0:06:17]} Ne4 {[%emt 0:00:50]} 22. Bxd6 {[%emt 0:02:17]} Qxd6 {[%emt 0:00:23]} 23. Nxe4 {[%emt 0:11:01]} dxe4 {[%emt 0:00:37]} 24. Ne3 {[%emt 0:00:50]} f5 {[%emt 0:00:42]} 25. Qe2 {[%emt 0:00:07]} Ne7 {[%emt 0:03:35]} 26. g3 {[%emt 0:02:15]} Nd5 {[%emt 0:06:06]} 27. Nxd5 {[%emt 0:01:09]} exd5 {[%emt 0:00:39]} 28. Kd2 {[%emt 0:03:44]} f4 {[%emt 0:00:32]} 29. g4 {[%emt 0:00:27]} e3+ {[%emt 0:01:20]} 30. fxe3 {[%emt 0:00:47]} fxe3+ {[%emt 0:00:16]} 31. Kc1 {[%emt 0:00:45]} Rae8 {[%emt 0:06:35]} 32. Rdf1 {[%emt 0:02:26]} Qg3 {[%emt 0:01:17]} 33. h5 {[%emt 0:00:36]} Re4 {[%emt 0:03:44]} 34. Rxf8+ {[%emt 0:00:47]} Kxf8 {[%emt 0:00:02]} 35. Rf1+ {[%emt 0:00:51]} Kg8 {[%emt 0:02:35]} 36. Re1 {[%emt 0:01:15]} h6 {[%emt 0:00:39]} 37. Kd1 {[%emt 0:00:30]} Qf4 {[%emt 0:00:56]} 38. Rg1 {[%emt 0:00:27]} Re8 {[%emt 0:02:17]} 39. Re1 {[%emt 0:00:22]} Qe4 {[%emt 0:01:12]} 40. Kc1 {[%emt 0:00:04]} Re6 {[%emt 0:03:57]} 41. Rf1 {[%emt 0:31:18]} b4 {[%emt 0:39:00]} 42. Qc2 {[%emt 0:00:00]} bxa3 {[%emt 0:00:00]} 43. Qxe4 {[%emt 0:00:00]} axb2+ {[%emt 0:00:00]} 44. Kxb2 {[%emt 0:00:00]} Rxe4 {[%emt 0:00:00]} 45. Re1 {[%emt 0:00:00]} Kf7 {[%emt 0:00:00]} 46. Ka3 {[%emt 0:00:00]} Ke6 {[%emt 0:00:00]} 47. Kb4 {[%emt 0:00:00]} Kd6 {[%emt 0:00:00]} 48. Ka5 {[%emt 0:00:00]} e2 {[%emt 0:00:00]} 49. Kb5 {[%emt 0:00:00]} Re3 {[%emt 0:00:00]} 50. Kb4 {[%emt 0:00:00]} Kc6 {[%emt 0:00:00]} 51. Ka4 {[%emt 0:00:00]} Rxc3 {[%emt 0:00:00]} 52. Rxe2 {[%emt 0:00:00]} Kd6 {[%emt 0:00:00]} 53. Rb2 {[%emt 0:00:00]} Rd3 {[%emt 0:00:00]} 54. Rb7 {[%emt 0:00:00]} Rxd4 {[%emt 0:00:00]} 55. Rxg7 {[%emt 0:00:00]} Rd1 {[%emt 0:00:00]} 56. Kb4 {[%emt 0:00:00]} Rb1+ {[%emt 0:00:00]} 57. Kc3 {[%emt 0:00:00]} Rb3+ {[%emt 0:00:00]} 58. Kd4 {[%emt 0:09:09] Ke5+} 0-1

[Event "10th Dolomiti Open 2019"]
[Site "Forni di Sopra"]
[Date "2019.06.18"]
[Round "5.10"]
[White "Le Goff, Ronan"]
[Black "Arjun, Kalyan"]
[Result "1/2-1/2"]
[ECO "D02"]
[WhiteElo "2229"]
[BlackElo "2482"]
[Annotator "ChessBase"]
[PlyCount "94"]
[EventDate "2019.06.15"]
[EventType "swiss"]
[EventCountry "ITA"]
[SourceTitle "playchess.com"]
[Source "ChessBase"]
[SourceQuality "1"]
[TimeControl "40/5400+30:1800+30"]

1. Nf3 {[%emt 0:04:32]} d5 {[%emt 0:00:00]} 2. g3 {[%emt 0:00:09]} Bg4 {[%emt 0:00:00]} 3. d4 {[%emt 0:01:58]} c6 {[%emt 0:01:08]} 4. Bg2 {[%emt 0:00:22]} Nf6 {[%emt 0:00:11]} 5. Nbd2 {[%emt 0:01:00]} e6 {[%emt 0:00:11]} 6. O-O {[%emt 0:01:10]} Nbd7 {[%emt 0:00:06]} 7. Re1 {[%emt 0:02:37]} Be7 {[%emt 0:00:21]} 8. e4 {[%emt 0:02:30]} O-O {[%emt 0:00:14]} 9. c3 {[%emt 0:03:52]} h6 {[%emt 0:01:32]} 10. h3 {[%emt 0:04:56]} Bh5 {[%emt 0:01:34]} 11. Qb3 {[%emt 0:01:08]} Qc7 {[%emt 0:02:02]} 12. exd5 {[%emt 0:08:23]} cxd5 {[%emt 0:00:50]} 13. Nh4 {[%emt 0:01:59]} g5 {[%emt 0:27:23]} 14. Nf5 {[%emt 0:09:31]} Bd8 {[%emt 0:02:36]} 15. Ne3 {[%emt 0:05:40]} Qb6 {[%emt 0:07:49]} 16. Qxb6 {[%emt 0:07:05]} Bxb6 {[%emt 0:01:38]} 17. b3 {[%emt 0:00:33]} Rfc8 {[%emt 0:01:33]} 18. Bb2 {[%emt 0:00:11]} Ba5 {[%emt 0:01:59]} 19. Rec1 {[%emt 0:01:45]} Be2 {[%emt 0:04:03]} 20. a4 {[%emt 0:02:30]} Rab8 {[%emt 0:09:11]} 21. b4 {[%emt 0:01:35]} Bd8 {[%emt 0:00:03]} 22. c4 {[%emt 0:00:22]} dxc4 {[%emt 0:01:15]} 23. Ndxc4 {[%emt 0:00:31]} Be7 {[%emt 0:01:54]} 24. b5 {[%emt 0:01:15]} Bxc4 {[%emt 0:02:19]} 25. Rxc4 {[%emt 0:00:55]} Rxc4 {[%emt 0:01:38]} 26. Nxc4 {[%emt 0:00:15]} Nd5 {[%emt 0:00:12]} 27. Bxd5 {[%emt 0:03:43]} exd5 {[%emt 0:00:10]} 28. Ne3 {[%emt 0:00:07]} Nf6 {[%emt 0:03:13]} 29. Nf5 {[%emt 0:02:34]} Bf8 {[%emt 0:00:34]} 30. Ba3 {[%emt 0:00:23]} h5 {[%emt 0:03:07]} 31. Bxf8 {[%emt 0:01:18]} Kxf8 {[%emt 0:00:30]} 32. Rc1 {[%emt 0:00:19]} Ne8 {[%emt 0:10:55]} 33. Rc5 {[%emt 0:01:51]} Rd8 {[%emt 0:00:05]} 34. Ne3 {[%emt 0:04:07]} Ng7 {[%emt 0:03:31]} 35. Rc7 {[%emt 0:04:11]} Rb8 {[%emt 0:00:45]} 36. Rd7 {[%emt 0:02:20]} Ne6 {[%emt 0:00:00]} 37. Nf5 {[%emt 0:01:16]} Ke8 {[%emt 0:03:56]} 38. Rxd5 {[%emt 0:00:45]} Rd8 {[%emt 0:00:00]} 39. Re5 {[%emt 0:10:58]} Kf8 {[%emt 0:00:36]} 40. a5 {[%emt 0:02:16]} g4 {[%emt 0:01:48]} 41. d5 {[%emt 0:31:36]} Ng5 {[%emt 0:30:41]} 42. Nd4 {[%emt 0:02:03]} Nxh3+ {[%emt 0:01:28]} 43. Kf1 {[%emt 0:02:51]} Kg7 {[%emt 0:00:20]} 44. Rxh5 {[%emt 0:01:39]} Kg6 {[%emt 0:00:26]} 45. Re5 {[%emt 0:00:52]} f6 {[%emt 0:02:37]} 46. Rf5 {[%emt 0:00:00]} Ng5 {[%emt 0:00:00]} 47. Ke2 {[%emt 0:00:00]} Nf7 {[%emt 0:00:00]} 1/2-1/2

[Event "10th Dolomiti Open 2019"]
[Site "Forni di Sopra"]
[Date "2019.06.19"]
[Round "6.4"]
[White "Cruz, Cristhian"]
[Black "Sonis, Francesco"]
[Result "1-0"]
[ECO "E43"]
[WhiteElo "2561"]
[BlackElo "2494"]
[Annotator "ChessBase"]
[PlyCount "93"]
[EventDate "2019.06.15"]
[EventType "swiss"]
[EventCountry "ITA"]
[SourceTitle "playchess.com"]
[Source "ChessBase"]
[SourceQuality "1"]
[TimeControl "40/5400+30:1800+30"]

1. d4 {[%emt 0:00:00]} Nf6 {[%emt 0:00:00]} 2. c4 {[%emt 0:00:02]} e6 {[%emt 0:00:00]} 3. Nc3 {[%emt 0:00:12]} Bb4 {[%emt 0:00:00]} 4. e3 {[%emt 0:00:08]} b6 {[%emt 0:00:05]} 5. Bd3 {[%emt 0:00:47]} Bb7 {[%emt 0:00:09]} 6. Nf3 {[%emt 0:00:05]} O-O {[%emt 0:01:36]} 7. O-O {[%emt 0:00:05]} d5 {[%emt 0:00:03]} 8. a3 {[%emt 0:01:24]} Bxc3 {[%emt 0:02:26]} 9. bxc3 {[%emt 0:00:03]} c5 {[%emt 0:00:27]} 10. cxd5 {[%emt 0:00:59]} exd5 {[%emt 0:01:16]} 11. dxc5 {[%emt 0:02:36]} bxc5 {[%emt 0:01:42]} 12. c4 {[%emt 0:02:46]} Nbd7 {[%emt 0:02:44]} 13. Bb2 {[%emt 0:07:18]} Re8 {[%emt 0:03:54]} 14. Rc1 {[%emt 0:06:11]} Rb8 {[%emt 0:01:48]} 15. cxd5 {[%emt 0:08:18]} Bxd5 {[%emt 0:00:05]} 16. Bxf6 {[%emt 0:02:10]} Nxf6 {[%emt 0:00:03]} 17. Rxc5 {[%emt 0:00:43]} Bxf3 {[%emt 0:05:34]} 18. gxf3 {[%emt 0:00:10]} Rc8 {[%emt 0:01:29]} 19. Rxc8 {[%emt 0:08:12]} Qxc8 {[%emt 0:00:04]} 20. Qe2 {[%emt 0:00:58]} Qc5 {[%emt 0:11:44]} 21. a4 {[%emt 0:01:42]} g6 {[%emt 0:03:17]} 22. Rb1 {[%emt 0:03:44]} Rd8 {[%emt 0:05:41]} 23. Bc4 {[%emt 0:07:45]} Rd7 {[%emt 0:00:38]} 24. Rb5 {[%emt 0:01:36]} Qc6 {[%emt 0:07:04]} 25. Kg2 {[%emt 0:02:27]} Kg7 {[%emt 0:00:06]} 26. Ba2 {[%emt 0:01:57]} Qc3 {[%emt 0:08:58]} 27. Qc4 {[%emt 0:03:38]} Qxc4 {[%emt 0:00:55]} 28. Bxc4 {[%emt 0:00:13]} Rc7 {[%emt 0:00:03]} 29. Bb3 {[%emt 0:00:40]} Nd7 {[%emt 0:00:30]} 30. Kf1 {[%emt 0:04:58]} Nc5 {[%emt 0:02:39]} 31. Bd1 {[%emt 0:03:05]} Kf6 {[%emt 0:01:12]} 32. Ke2 {[%emt 0:00:41]} Ke7 {[%emt 0:00:17]} 33. Bc2 {[%emt 0:01:28]} Kd6 {[%emt 0:00:46]} 34. f4 {[%emt 0:01:20]} Rc8 {[%emt 0:01:42]} 35. h4 {[%emt 0:02:28]} Rc6 {[%emt 0:03:04]} 36. Kd2 {[%emt 0:02:33]} Kc7 {[%emt 0:01:29]} 37. f5 {[%emt 0:03:24]} Rd6+ {[%emt 0:08:19]} 38. Kc3 {[%emt 0:02:03]} Rc6 {[%emt 0:05:21]} 39. Kd4 {[%emt 0:03:53]} Kd6 {[%emt 0:08:42]} 40. e4 {[%emt 0:04:21]} f6 {[%emt 0:01:15]} 41. f4 {[%emt 0:31:15]} Nd7 {[%emt 0:30:41]} 42. Bd3 {[%emt 0:03:10]} gxf5 {[%emt 0:01:02]} 43. Rd5+ {[%emt 0:01:03]} Kc7 {[%emt 0:01:06]} 44. Rxd7+ {[%emt 0:01:31]} Kxd7 {[%emt 0:00:04]} 45. Bb5 {[%emt 0:00:04]} a6 {[%emt 0:01:40]} 46. Bxc6+ {[%emt 0:00:08]} Kxc6 {[%emt 0:00:03]} 47. e5 {[%emt 0:09:16] Kd5+ Ke4+} 1-0

[Event "10th Dolomiti Open 2019"]
[Site "Forni di Sopra"]
[Date "2019.06.19"]
[Round "6.5"]
[White "Basso, Pier Luigi"]
[Black "Castellanos Rodriguez, Renier"]
[Result "1-0"]
[ECO "E16"]
[WhiteElo "2539"]
[BlackElo "2511"]
[Annotator "ChessBase"]
[PlyCount "79"]
[EventDate "2019.06.15"]
[EventType "swiss"]
[EventCountry "ITA"]
[SourceTitle "playchess.com"]
[Source "ChessBase"]
[SourceQuality "1"]
[TimeControl "40/5400+30:1800+30"]

1. d4 {[%emt 0:05:08]} Nf6 {[%emt 0:00:00]} 2. c4 {[%emt 0:00:40]} e6 {[%emt 0:00:00]} 3. Nf3 {[%emt 0:00:18]} b6 {[%emt 0:00:14]} 4. g3 {[%emt 0:00:14]} Bb4+ {[%emt 0:00:16]} 5. Bd2 {[%emt 0:00:07]} c5 {[%emt 0:00:27]} 6. Bg2 {[%emt 0:00:54]} Bb7 {[%emt 0:00:06]} 7. d5 {[%emt 0:01:04]} exd5 {[%emt 0:03:21]} 8. Nh4 {[%emt 0:00:25]} O-O {[%emt 0:03:30]} 9. Bxb4 {[%emt 0:18:50]} cxb4 {[%emt 0:00:03]} 10. O-O {[%emt 0:00:53]} Na6 {[%emt 0:12:59]} 11. a3 {[%emt 0:02:44]} Qe7 {[%emt 0:10:11]} 12. cxd5 {[%emt 0:04:56]} Qe5 {[%emt 0:01:09]} 13. axb4 {[%emt 0:02:18]} Nxb4 {[%emt 0:06:36]} 14. e4 {[%emt 0:08:19]} a5 {[%emt 0:19:48]} 15. Nc3 {[%emt 0:02:31]} Ba6 {[%emt 0:00:11]} 16. f4 {[%emt 0:01:22]} Qc7 {[%emt 0:00:33]} 17. Rf3 {[%emt 0:12:27]} d6 {[%emt 0:05:44]} 18. Qd2 {[%emt 0:00:51]} Rae8 {[%emt 0:03:29]} 19. Re1 {[%emt 0:01:14]} Nd7 {[%emt 0:03:20]} 20. Bf1 {[%emt 0:03:57]} Bxf1 {[%emt 0:03:02]} 21. Kxf1 {[%emt 0:00:42]} g6 {[%emt 0:00:45]} 22. Kg2 {[%emt 0:02:38]} Qc4 {[%emt 0:00:50]} 23. Re2 {[%emt 0:05:15]} Nc5 {[%emt 0:03:30]} 24. e5 {[%emt 0:01:54]} f5 {[%emt 0:03:14]} 25. Rfe3 {[%emt 0:03:53]} Nb3 {[%emt 0:02:34]} 26. Qd1 {[%emt 0:00:34]} Nd4 {[%emt 0:00:56]} 27. Rd2 {[%emt 0:01:24]} Nb3 {[%emt 0:00:54]} 28. Rf2 {[%emt 0:01:55]} Nc5 {[%emt 0:01:39]} 29. Nf3 {[%emt 0:02:18]} Re7 {[%emt 0:07:57]} 30. Qd4 {[%emt 0:03:16]} Qxd4 {[%emt 0:00:20]} 31. Nxd4 {[%emt 0:00:02]} dxe5 {[%emt 0:01:21]} 32. Rxe5 {[%emt 0:03:46]} Rd7 {[%emt 0:00:28]} 33. Ne6 {[%emt 0:02:00]} Rc8 {[%emt 0:00:20]} 34. Nxc5 {[%emt 0:00:48]} Rxc5 {[%emt 0:00:16]} 35. Rd2 {[%emt 0:00:15]} Kf7 {[%emt 0:02:17]} 36. h3 {[%emt 0:00:30]} Rd6 {[%emt 0:01:07]} 37. g4 {[%emt 0:00:23]} fxg4 {[%emt 0:02:13]} 38. hxg4 {[%emt 0:00:38]} Rc4 {[%emt 0:00:34]} 39. Kf3 {[%emt 0:00:39]} Nc6 {[%emt 0:01:55]} 40. Re4 {[%emt 0:00:54]} 1-0

[Event "10th Dolomiti Open 2019"]
[Site "Forni di Sopra"]
[Date "2019.06.19"]
[Round "6.6"]
[White "Valsecchi, Alessio"]
[Black "Sarkar, Justin"]
[Result "0-1"]
[ECO "A17"]
[WhiteElo "2504"]
[BlackElo "2359"]
[Annotator "ChessBase"]
[PlyCount "64"]
[EventDate "2019.06.15"]
[EventType "swiss"]
[EventCountry "ITA"]
[SourceTitle "playchess.com"]
[Source "ChessBase"]
[SourceQuality "1"]
[TimeControl "40/5400+30:1800+30"]

1. c4 {[%emt 0:00:00]} Nf6 {[%emt 0:08:09]} 2. Nc3 {[%emt 0:00:00]} e6 {[%emt 0:01:49]} 3. e3 {[%emt 0:01:35]} d5 {[%emt 0:00:40]} 4. Nf3 {[%emt 0:01:26]} c5 {[%emt 0:01:12]} 5. cxd5 {[%emt 0:00:23]} Nxd5 {[%emt 0:00:19]} 6. Qc2 {[%emt 0:03:25]} Nc6 {[%emt 0:03:27]} 7. a3 {[%emt 0:00:11]} Be7 {[%emt 0:01:10]} 8. Be2 {[%emt 0:04:16]} O-O {[%emt 0:00:17]} 9. h4 {[%emt 0:00:27]} f5 {[%emt 0:23:46]} 10. h5 {[%emt 0:10:28]} a6 {[%emt 0:03:36]} 11. h6 {[%emt 0:03:34]} g6 {[%emt 0:00:49]} 12. d3 {[%emt 0:01:07]} b5 {[%emt 0:02:38]} 13. Nxd5 {[%emt 0:03:48]} Qxd5 {[%emt 0:06:52]} 14. Bd2 {[%emt 0:09:23]} e5 {[%emt 0:06:37]} 15. e4 {[%emt 0:08:14]} Qd6 {[%emt 0:02:22]} 16. Rc1 {[%emt 0:03:59]} fxe4 {[%emt 0:05:35]} 17. dxe4 {[%emt 0:00:38]} Nd4 {[%emt 0:01:38]} 18. Nxd4 {[%emt 0:00:27]} exd4 {[%emt 0:00:11]} 19. f4 {[%emt 0:02:32]} Rxf4 {[%emt 0:02:31]} 20. Bxf4 {[%emt 0:06:06]} Qxf4 {[%emt 0:00:06]} 21. Qb3+ {[%emt 0:01:04]} c4 {[%emt 0:02:00]} 22. Rxc4 {[%emt 0:00:41]} bxc4 {[%emt 0:04:13]} 23. Qxc4+ {[%emt 0:00:03]} Kh8 {[%emt 0:02:15]} 24. Rf1 {[%emt 0:13:25]} Qxe4 {[%emt 0:03:14]} 25. Qf7 {[%emt 0:01:52]} Qb1+ {[%emt 0:06:13]} 26. Bd1 {[%emt 0:02:36]} Bh4+ {[%emt 0:03:49]} 27. g3 {[%emt 0:05:07]} Bxg3+ {[%emt 0:00:34]} 28. Kd2 {[%emt 0:01:53]} Qxb2+ {[%emt 0:00:11]} 29. Kd3 {[%emt 0:00:37]} Qc3+ {[%emt 0:00:21]} 30. Ke4 {[%emt 0:00:02]} Qe3+ {[%emt 0:00:23]} 31. Kd5 {[%emt 0:00:02]} Be6+ {[%emt 0:00:23]} 32. Qxe6 {[%emt 0:00:10]} Rd8+ {[%emt 0:08:40] Kxd4} 0-1

[Event "10th Dolomiti Open 2019"]
[Site "Forni di Sopra"]
[Date "2019.06.19"]
[Round "6.7"]
[White "Haug, Johannes"]
[Black "Bellia, Fabrizio"]
[Result "1-0"]
[ECO "B12"]
[WhiteElo "2438"]
[BlackElo "2450"]
[Annotator "ChessBase"]
[PlyCount "81"]
[EventDate "2019.06.15"]
[EventType "swiss"]
[EventCountry "ITA"]
[SourceTitle "playchess.com"]
[Source "ChessBase"]
[SourceQuality "1"]
[TimeControl "40/5400+30:1800+30"]

1. e4 {[%emt 0:03:51]} c6 {[%emt 0:00:00]} 2. d4 {[%emt 0:00:04]} d5 {[%emt 0:00:00]} 3. e5 {[%emt 0:00:06]} Bf5 {[%emt 0:00:00]} 4. h4 {[%emt 0:00:56]} h5 {[%emt 0:00:00]} 5. Bd3 {[%emt 0:00:06]} Bxd3 {[%emt 0:00:01]} 6. Qxd3 {[%emt 0:00:13]} e6 {[%emt 0:00:07]} 7. Bg5 {[%emt 0:00:51]} Be7 {[%emt 0:00:23]} 8. Nf3 {[%emt 0:00:20]} Nh6 {[%emt 0:00:04]} 9. Nbd2 {[%emt 0:02:32]} Nf5 {[%emt 0:03:32]} 10. g3 {[%emt 0:02:50]} c5 {[%emt 0:16:10]} 11. Bxe7 {[%emt 0:19:12]} Qxe7 {[%emt 0:02:01]} 12. c4 {[%emt 0:04:53]} dxc4 {[%emt 0:09:27]} 13. Qxc4 {[%emt 0:12:30]} Na6 {[%emt 0:08:52]} 14. d5 {[%emt 0:05:28]} exd5 {[%emt 0:01:12]} 15. Qxd5 {[%emt 0:00:07]} Nb4 {[%emt 0:14:35]} 16. Qe4 {[%emt 0:01:24]} g6 {[%emt 0:00:05]} 17. a3 {[%emt 0:12:19]} Nc6 {[%emt 0:01:16]} 18. O-O {[%emt 0:00:10]} O-O {[%emt 0:01:09]} 19. Rac1 {[%emt 0:05:34]} Rac8 {[%emt 0:04:29]} 20. Rfe1 {[%emt 0:05:23]} Rfe8 {[%emt 0:01:44]} 21. Qf4 {[%emt 0:02:07]} Kg7 {[%emt 0:06:48]} 22. Kg2 {[%emt 0:03:12]} b5 {[%emt 0:06:57]} 23. Nb1 {[%emt 0:01:24]} Nfd4 {[%emt 0:04:26]} 24. Nxd4 {[%emt 0:02:03]} Nxd4 {[%emt 0:00:09]} 25. Nc3 {[%emt 0:00:47]} Qe6 {[%emt 0:02:47]} 26. Rcd1 {[%emt 0:04:28]} Rcd8 {[%emt 0:00:55]} 27. Qe4 {[%emt 0:05:00]} a6 {[%emt 0:01:27]} 28. Rd3 {[%emt 0:00:46]} Rd7 {[%emt 0:08:11]} 29. Rdd1 {[%emt 0:01:36]} Red8 {[%emt 0:00:35]} 30. Rf1 {[%emt 0:00:58]} a5 {[%emt 0:01:18]} 31. Qf4 {[%emt 0:01:35]} Re8 {[%emt 0:02:36]} 32. Rfe1 {[%emt 0:01:23]} b4 {[%emt 0:00:51]} 33. axb4 {[%emt 0:01:44]} axb4 {[%emt 0:00:30]} 34. Ne4 {[%emt 0:00:22]} Qd5 {[%emt 0:04:23]} 35. Qf6+ {[%emt 0:00:35]} Kg8 {[%emt 0:00:00]} 36. f3 {[%emt 0:00:26]} Rxe5 {[%emt 0:00:00]} 37. Nxc5 {[%emt 0:01:15]} Rxe1 {[%emt 0:00:00]} 38. Rxe1 {[%emt 0:00:00]} Rd8 {[%emt 0:00:39]} 39. Re5 {[%emt 0:00:11]} Qa8 {[%emt 0:00:47]} 40. Re7 {[%emt 0:00:36]} Qd5 {[%emt 0:00:58]} 41. Rxf7 {[%emt 0:31:13]} 1-0

[Event "10th Dolomiti Open 2019"]
[Site "Forni di Sopra"]
[Date "2019.06.19"]
[Round "6.8"]
[White "Anand Nadar"]
[Black "Low, Zhen Yu Cyrus"]
[Result "1-0"]
[ECO "B53"]
[WhiteElo "2366"]
[BlackElo "2443"]
[Annotator "NA"]
[PlyCount "57"]
[EventDate "2019.06.15"]
[EventType "swiss"]
[EventCountry "ITA"]
[SourceTitle "playchess.com"]
[Source "ChessBase"]
[SourceQuality "1"]
[TimeControl "40/5400+30:1800+30"]

1. e4 {[%emt 0:00:00]} c5 {[%emt 0:00:00]} 2. Nf3 {[%emt 0:00:00]} d6 {[%emt 0:00:00]} 3. d4 {[%emt 0:00:00]} cxd4 {[%emt 0:00:00]} 4. Qxd4 {[%emt 0:00:00]} Nc6 {[%emt 0:00:00]} 5. Qe3 {[%emt 0:00:00]} Nf6 {[%emt 0:04:25]} 6. Be2 {[%emt 0:00:11]} g6 {[%emt 0:01:40]} 7. O-O {[%emt 0:00:45]} Bg7 {[%emt 0:00:06]} 8. Rd1 {[%emt 0:00:04]} O-O {[%emt 0:01:49]} 9. Nc3 {[%emt 0:00:12]} Qc7 {[%emt 0:07:30]} 10. Qf4 {[%emt 0:00:55]} a6 {[%emt 0:08:49]} 11. Qh4 {[%emt 0:02:07]} h5 {[%emt 0:01:05]} 12. Nd5 {[%emt 0:06:47]} Nxd5 {[%emt 0:05:35]} 13. exd5 {[%emt 0:02:02]} Ne5 {[%emt 0:05:13]} 14. Nxe5 {[%emt 0:02:42]} dxe5 {[%emt 0:00:13]} 15. c4 {[%emt 0:09:38]} b5 {[%emt 0:12:16]} 16. Bg5 {[%emt 0:12:38]} f6 {[%emt 0:00:38]} 17. Be3 {[%emt 0:00:21]} bxc4 {[%emt 0:00:58]} 18. Bxc4 {[%emt 0:05:25]} Qd6 {[%emt 0:12:55]} 19. Rac1 {[%emt 0:04:52]} Bd7 {[%emt 0:01:40]} 20. Bd3 {[%emt 0:08:26]} Be8 {[%emt 0:02:06]} 21. Bc5 {[%emt 0:00:59]} Qd7 {[%emt 0:01:11]} 22. d6 {[%emt 0:05:18]} e6 {[%emt 0:00:33]} 23. Ba3 {[%emt 0:00:28]} Ra7 {[%emt 0:02:42]} 24. Rc7 {[%emt 0:06:52]} Rxc7 {[%emt 0:00:08]} 25. dxc7 {[%emt 0:00:01]} Rf7 {[%emt 0:04:51]} 26. Rc1 {[%emt 0:02:20]} Qc8 {[%emt 0:00:20]} 27. Bd6 {[%emt 0:00:51]} Rd7 {[%emt 0:01:20]} 28. Qb4 {[%emt 0:02:15]} Bf8 {[%emt 0:02:45]} 29. Qb8 {[%emt 0:01:05]} 1-0

[Event "10th Dolomiti Open 2019"]
[Site "Forni di Sopra"]
[Date "2019.06.19"]
[Round "6.9"]
[White "Arjun Kalyan"]
[Black "Dappiano, Andrea"]
[Result "1/2-1/2"]
[ECO "C00"]
[WhiteElo "2484"]
[BlackElo "2271"]
[Annotator "ChessBase"]
[PlyCount "85"]
[EventDate "2019.06.15"]
[EventType "swiss"]
[EventCountry "ITA"]
[SourceTitle "playchess.com"]
[Source "ChessBase"]
[SourceQuality "1"]
[TimeControl "40/5400+30:1800+30"]

1. Nf3 {[%emt 0:00:00]} d5 {[%emt 0:00:00]} 2. g3 {[%emt 0:00:14]} Nf6 {[%emt 0:00:10]} 3. Bg2 {[%emt 0:00:31]} e6 {[%emt 0:01:19]} 4. O-O {[%emt 0:00:30]} c5 {[%emt 0:00:34]} 5. d3 {[%emt 0:00:43]} Nc6 {[%emt 0:02:28]} 6. Nbd2 {[%emt 0:00:15]} b6 {[%emt 0:09:56]} 7. e4 {[%emt 0:02:24]} Bb7 {[%emt 0:00:12]} 8. Re1 {[%emt 0:00:39]} Be7 {[%emt 0:00:13]} 9. c3 {[%emt 0:03:04]} O-O {[%emt 0:10:21]} 10. e5 {[%emt 0:00:30]} Nd7 {[%emt 0:00:02]} 11. Nf1 {[%emt 0:00:17]} b5 {[%emt 0:00:05]} 12. h4 {[%emt 0:01:24]} b4 {[%emt 0:03:14]} 13. c4 {[%emt 0:06:28]} Nb6 {[%emt 0:22:01]} 14. Qe2 {[%emt 0:00:57]} dxc4 {[%emt 0:00:46]} 15. dxc4 {[%emt 0:00:06]} Nd4 {[%emt 0:02:27]} 16. Nxd4 {[%emt 0:03:43]} Bxg2 {[%emt 0:00:17]} 17. Nf3 {[%emt 0:13:37]} Bxf3 {[%emt 0:02:03]} 18. Qxf3 {[%emt 0:00:01]} Nxc4 {[%emt 0:01:17]} 19. Qg4 {[%emt 0:20:39]} Qd3 {[%emt 0:03:09]} 20. Bh6 {[%emt 0:02:49]} Qg6 {[%emt 0:00:48]} 21. Qxc4 {[%emt 0:00:05]} Qxh6 {[%emt 0:00:57]} 22. Rad1 {[%emt 0:00:40]} Rfd8 {[%emt 0:07:11]} 23. Rxd8+ {[%emt 0:04:31]} Rxd8 {[%emt 0:00:25]} 24. Qa6 {[%emt 0:00:01]} Qh5 {[%emt 0:03:17]} 25. Qxa7 {[%emt 0:00:13]} Bf8 {[%emt 0:00:04]} 26. a4 {[%emt 0:05:34]} bxa3 {[%emt 0:00:54]} 27. Qxa3 {[%emt 0:00:15]} Qf5 {[%emt 0:03:52]} 28. Qc3 {[%emt 0:06:25]} Rd3 {[%emt 0:02:49]} 29. Qc4 {[%emt 0:01:15]} Rd4 {[%emt 0:00:30]} 30. Qe2 {[%emt 0:00:50]} Qd3 {[%emt 0:05:06]} 31. Qxd3 {[%emt 0:01:09]} Rxd3 {[%emt 0:00:04]} 32. Ne3 {[%emt 0:00:47]} Rd2 {[%emt 0:01:40]} 33. Nc4 {[%emt 0:00:20]} Rc2 {[%emt 0:00:06]} 34. b3 {[%emt 0:00:30]} Rc3 {[%emt 0:05:41]} 35. Re3 {[%emt 0:00:34]} Rxe3 {[%emt 0:01:00]} 36. Nxe3 {[%emt 0:00:15]} f6 {[%emt 0:00:56]} 37. Nc4 {[%emt 0:07:29]} Kf7 {[%emt 0:01:23]} 38. f4 {[%emt 0:01:08]} h5 {[%emt 0:04:55]} 39. Kf2 {[%emt 0:01:00]} g5 {[%emt 0:01:21]} 40. hxg5 {[%emt 0:03:04]} fxg5 {[%emt 0:00:17]} 41. Kf3 {[%emt 0:31:13]} Kg6 {[%emt 0:33:01]} 42. Ne3 {[%emt 0:03:10]} Be7 {[%emt 0:00:00]} 43. Ke4 {[%emt 0:00:00]} 1/2-1/2